fUSD/lending_fUSD_20240220
["ID","MTS","AMOUNT","RATE_DAILY","PERIOD"]
[314555940,1708420253702,-871.95,0.0003589,2]
[314555941,1708420253711,-500.0,0.0003589,2]
[314555942,1708420253721,-500.0,0.0003589,2]
[314555943,1708420253731,-1178.47,0.0003589,2]
[314555944,1708420253741,-500.0,0.0003589,2]
[314555945,1708420253750,-1543.48,0.0003589,2]
[314555946,1708420253760,-3042.71,0.0003589,2]
[314555947,1708420253769,-500.0,0.0003589,2]
[314555948,1708420253779,-1000.0,0.0003589,2]
[314555949,1708420253789,-500.0,0.0003589,2]
[314555950,1708420253798,-500.0,0.0003589,2]
[314555951,1708420253808,-500.0,0.0003589,2]
[314555952,1708420253818,-500.0,0.0003589,2]
[314555953,1708420253828,-500.0,0.0003589,2]
[314555954,1708420253838,-635.94,0.0003589,2]
[314555955,1708420253847,-592.36,0.0003589,2]
[314555956,1708420253858,-1005.6,0.0003589,2]
[314555957,1708420253867,-500.0,0.0003589,2]
[314555958,1708420253877,-500.0,0.0003589,2]
[314555959,1708420253887,-7177.09,0.0003589,2]
[314555960,1708420253896,-500.0,0.0003589,2]
[314555961,1708420253906,-896.54,0.0003589,2]
[314555962,1708420253916,-500.0,0.0003589,2]
[314555963,1708420253927,-500.0,0.0003589,2]
[314555964,1708420253937,-527.65419554,0.0003589,2]
[314555965,1708420253947,-500.0,0.0003589,2]
[314555966,1708420253957,-500.0,0.0003589,2]
[314555967,1708420253967,-500.0,0.0003589,2]
[314555968,1708420253977,-500.0,0.0003589,2]
[314555969,1708420253987,-500.0,0.0003589,2]
[314555970,1708420253996,-500.0,0.0003589,2]
[314555971,1708420254007,-674.74,0.0003589,2]
[314555972,1708420254016,-500.0,0.0003589,2]
[314555973,1708420254026,-1594.48,0.0003589,2]
[314555974,1708420254036,-938.29,0.0003589,2]
[314555975,1708420254046,-500.0,0.0003589,2]
[314555976,1708420254056,-500.0,0.0003589,2]
[314555977,1708420254065,-776.78,0.0003589,2]
[314555978,1708420254075,-500.0,0.0003589,2]
[314555979,1708420254085,-970.09,0.0003589,2]
[314555980,1708420254095,-1251.94,0.0003589,2]
[314555981,1708420254104,-500.0,0.0003589,2]
[314555982,1708420254114,-452.16457857,0.0003589,2]
[314555983,1708420254124,-984.39,0.0003589,2]
[314555984,1708420254133,-500.0,0.0003589,2]
[314555985,1708420254143,-677.36,0.0003589,2]
[314555986,1708420254152,-789.43,0.0003589,2]
[314555987,1708420254162,-732.93,0.0003589,2]
[314555988,1708420254172,-822.48,0.0003589,2]
[314555989,1708420254182,-1860.63,0.0003589,2]
[314555990,1708420254191,-500.0,0.0003589,2]
[314555991,1708420254201,-578.77012252,0.0003589,2]
[314555992,1708420254217,-500.0,0.0003589,2]
[314555993,1708420254227,-500.0,0.0003589,2]
[314555994,1708420254237,-1499.97,0.0003589,2]
[314555995,1708420254246,-627.84567742,0.0003589,2]
[314555996,1708420254256,-707.66,0.0003589,2]
[314555997,1708420254266,-500.0,0.0003589,2]
[314555998,1708420254276,-739.83,0.0003589,2]
[314555999,1708420254286,-500.0,0.0003589,2]
[314556000,1708420254300,-1136.02,0.0003589,2]
[314556001,1708420254310,-500.0,0.0003589,2]
[314556002,1708420254319,-1599.03,0.0003589,2]
[314556003,1708420254329,-814.05,0.0003589,2]
[314556004,1708420254338,-3098.08,0.0003589,2]
[314556005,1708420254348,-474.54733641,0.0003589,2]
[314556006,1708420254357,-3377.07,0.0003589,2]
[314556007,1708420254366,-6241.79,0.0003589,2]
[314556008,1708420254375,-500.0,0.0003589,2]
[314556009,1708420254385,-500.0,0.0003589,2]
[314556010,1708420254394,-715.89,0.0003589,2]
[314556011,1708420254404,-536.57226261,0.0003589,2]
[314556012,1708420254413,-965.91,0.0003589,2]
[314556013,1708420254423,-500.0,0.0003589,2]
[314556014,1708420254432,-500.0,0.0003589,2]
[314556015,1708420254441,-500.0,0.0003589,2]
[314556016,1708420254450,-500.0,0.0003589,2]
[314556017,1708420254460,-1028.1,0.0003589,2]
[314556018,1708420254469,-1215.83,0.0003589,2]
[314556019,1708420254478,-1424.65,0.0003589,2]
[314556020,1708420254487,-2679.49,0.0003589,2]
[314556021,1708420254496,-754.66,0.0003589,2]
[314556022,1708420254505,-1175.08,0.0003589,2]
[314556023,1708420254515,-4420.18,0.0003589,2]
[314556024,1708420254524,-680.4,0.0003589,2]
[314556025,1708420254533,-2787.26,0.0003589,2]
[314556026,1708420254542,-981.88,0.0003589,2]
[314556027,1708420254551,-1798.12,0.0003589,2]
[314556028,1708420254560,-500.0,0.0003589,2]
[314556029,1708420254570,-500.0,0.0003589,2]
[314556030,1708420254579,-500.0,0.0003589,2]
[314556031,1708420254588,-500.0,0.0003589,2]
[314556032,1708420254597,-1448.55,0.0003589,2]
[314556033,1708420254606,-813.74,0.0003589,2]
[314556034,1708420254615,-500.0,0.0003589,2]
[314556035,1708420254625,-798.78,0.0003589,2]
[314556036,1708420254634,-500.0,0.0003589,2]
[314556037,1708420254644,-1186.01,0.0003589,2]
[314556038,1708420254654,-748.7,0.0003589,2]
[314556039,1708420254664,-500.0,0.0003589,2]
[314556040,1708420254674,-1240.34,0.0003589,2]
[314556041,1708420254683,-1047.51,0.0003589,2]
[314556042,1708420254692,-2939.08,0.0003589,2]
[314556043,1708420254702,-500.0,0.0003589,2]
[314556044,1708420254711,-500.0,0.0003589,2]
[314556045,1708420254721,-500.0,0.0003589,2]
[314556046,1708420254731,-254.96569712,0.0003589,2]
[314556047,1708420254742,-2714.51,0.0003589,2]
[314556048,1708420254752,-500.0,0.0003589,2]
[314556049,1708420254761,-1219.89,0.0003589,2]
[314556050,1708420254771,-1152.01,0.0003589,2]
[314556051,1708420254780,-500.0,0.0003589,2]
[314556052,1708420254789,-308.05601767,0.0003589,2]
[314556053,1708420255253,-621.06398233,0.0003589,2]
[314556054,1708420255263,-6.68182189,0.0003589,2]
[314556055,1708420255307,-818.59817811,0.0003589,2]
[314556056,1708420255316,-500.0,0.0003589,2]
[314556057,1708420255325,-500.0,0.0003589,2]
[314556058,1708420255335,-500.0,0.0003589,2]
[314556059,1708420255345,-500.0,0.0003589,2]
[314556060,1708420255354,-843.12757076,0.0003589,2]
[314556061,1708420255365,-593.11242924,0.0003589,2]
[314556062,1708420255374,-500.0,0.0003589,2]
[314556063,1708420255384,-500.0,0.0003589,2]
[314556064,1708420255394,-221.76757076,0.0003589,2]
[314556065,1708420255431,-574.98736815,0.00035616,2]
[314556066,1708420255486,-935.19263185,0.00035616,2]
[314556067,1708420255496,-278.23242924,0.0003589,2]
[314556068,1708420255505,-500.0,0.0003589,2]
[314556069,1708420255514,-500.0,0.0003589,2]
[314556070,1708420255523,-500.0,0.0003589,2]
[314556071,1708420255532,-500.0,0.0003589,2]
[314556072,1708420255541,-854.55,0.0003589,2]
[314556073,1708420255551,-400.35561539,0.0003589,2]
[314556074,1708420255563,-345.04438461,0.0003589,2]
[314556075,1708420255572,-439.16112486,0.0003589,2]
[314556076,1708420255584,-648.5229323,0.0003589,2]
[314556077,1708420256212,-416.63921772,0.00024899,2]
[314556078,1708420256223,-1720.71,0.00035616,2]
[314556079,1708420256233,-500.0,0.00035616,2]
[314556080,1708420256242,-500.0,0.00035616,2]
[314556081,1708420256254,-916.59594284,0.0003589,2]
[314556082,1708420256264,-1215.48,0.0003589,2]
[314556083,1708420256273,-500.0,0.0003589,2]
[314556084,1708420256283,-500.0,0.0003589,2]
[314556085,1708420256292,-927.54,0.0003589,2]
[314556086,1708420256302,-568.56,0.0003589,2]
[314556087,1708420256311,-325.90800356,0.0003589,2]
[314556088,1708420256636,-172.73975061,0.00035416,2]
[314556089,1708420256646,-414.35354717,0.00035616,2]
[314556090,1708420256657,-85.64645283,0.00035616,2]
[314556091,1708420256667,-174.09199644,0.0003589,2]
[314556092,1708420256677,-158.53457153,0.0003589,2]
[314556093,1708420256689,-341.46542847,0.0003589,2]
[314556094,1708420256698,-141.04537325,0.0003589,2]
[314556095,1708420257241,-500.0,0.00035616,2]
[314556096,1708420257252,-575.0750692,0.00035616,2]
[314556097,1708420257262,-1893.23462675,0.0003589,2]
[314556098,1708420257272,-500.0,0.0003589,2]
[314556099,1708420257282,-568.94556601,0.0003589,2]
[314556100,1708420257293,-859.37,0.0003589,2]
[314556101,1708420257303,-504.89,0.0003589,2]
[314556102,1708420257313,-500.0,0.0003589,2]
[314556103,1708420257323,-500.0,0.0003589,2]
[314556104,1708420257332,-500.0,0.0003589,2]
[314556105,1708420257342,-500.0,0.0003589,2]
[314556106,1708420257351,-500.0,0.0003589,2]
[314556107,1708420257361,-500.0,0.0003589,2]
[314556108,1708420257371,-766.27,0.0003589,2]
[314556109,1708420257380,-557.7,0.0003589,2]
[314556110,1708420257390,-685.62,0.0003589,2]
[314556111,1708420257400,-500.0,0.0003589,2]
[314556112,1708420257409,-500.0,0.0003589,2]
[314556113,1708420257419,-225.82831855,0.0003589,2]
[314556114,1708420257432,-274.17168145,0.0003589,2]
[314556115,1708420257442,-148.32253347,0.0003589,2]
[314556116,1708420257458,-822.98746653,0.0003589,2]
[314556117,1708420257468,-953.48,0.0003589,2]
[314556118,1708420257478,-500.0,0.0003589,2]
[314556119,1708420257488,-500.0,0.0003589,2]
[314556120,1708420257498,-7749.62,0.0003589,2]
[314556121,1708420257508,-1396.5,0.0003589,2]
[314556122,1708420257518,-500.0,0.0003589,2]
[314556123,1708420257528,-521.9658469,0.0003589,2]
[314556124,1708420257537,-545.13,0.0003589,2]
[314556125,1708420257547,-500.0,0.0003589,2]
[314556126,1708420257556,-500.0,0.0003589,2]
[314556127,1708420257566,-764.88,0.0003589,2]
[314556128,1708420257576,-500.0,0.0003589,2]
[314556129,1708420257586,-500.0,0.0003589,2]
[314556130,1708420257595,-724.47,0.0003589,2]
[314556131,1708420257604,-500.0,0.0003589,2]
[314556132,1708420257614,-500.0,0.0003589,2]
[314556133,1708420257623,-1510.18,0.0003589,2]
[314556134,1708420257633,-1720.71,0.0003589,2]
[314556135,1708420257642,-500.0,0.0003589,2]
[314556136,1708420257652,-510.0,0.0003589,2]
[314556137,1708420257661,-1000.0,0.000359,2]
[314556138,1708420257675,-51090.16440609,0.000359,2]
[314556139,1708420257709,-6373.72188976,0.000359,2]
[314556140,1708420257721,-40609.87187772,0.000359,2]
[314556141,1708420257740,-1926.24182643,0.000359,2]
[314556142,1708420257750,-200.0,0.00035903,3]
[314556143,1708420257759,-182.74531851,0.00035913,2]
[314556144,1708420257769,-150.0,0.00035944,2]
[314556145,1708420257778,-4269.33673705,0.00035948,8]
[314556146,1708420257809,-172.73975058,0.00035513,2]
[314556147,1708420257818,-705.75419027,0.00035948,8]
[314556148,1708420257830,-416.88642631,0.00035948,8]
[314556149,1708420257840,-83.11357369,0.00035948,2]
[314556150,1708420257851,-67.90762941,0.00035948,2]
[314556151,1708420257861,-1963.24564326,0.00035953,2]
[314556152,1708420257870,-150.0,0.00035956,2]
[314556153,1708420257880,-6000.0,0.0003598,2]
[314556154,1708420257890,-293.84951112,0.0003598,2]
[314556155,1708420257902,-206.15048888,0.0003598,2]
[314556156,1708420257911,-500.0,0.0003598,2]
[314556157,1708420257921,-500.0,0.0003598,2]
[314556158,1708420257930,-514.95,0.0003598,2]
[314556159,1708420257939,-500.0,0.0003598,2]
[314556160,1708420257950,-500.0,0.0003598,2]
[314556161,1708420257960,-500.0,0.0003598,2]
[314556162,1708420257970,-500.0,0.0003598,2]
[314556163,1708420257979,-500.0,0.0003598,2]
[314556164,1708420257989,-10.47534003,0.0003598,2]
[314556165,1708420258001,-489.52465997,0.0003598,2]
[314556166,1708420258011,-500.0,0.0003598,2]
[314556167,1708420258020,-500.0,0.0003598,2]
[314556168,1708420258030,-500.0,0.0003598,2]
[314556169,1708420258039,-500.0,0.0003598,2]
[314556170,1708420258049,-500.0,0.0003598,2]
[314556171,1708420258059,-500.0,0.0003598,2]
[314556172,1708420258069,-500.0,0.0003598,2]
[314556173,1708420258078,-500.0,0.0003598,2]
[314556174,1708420258088,-500.0,0.0003598,2]
[314556175,1708420258098,-500.0,0.0003598,2]
[314556176,1708420258107,-500.0,0.0003598,2]
[314556177,1708420258117,-500.0,0.0003598,2]
[314556178,1708420258127,-500.0,0.0003598,2]
[314556179,1708420258139,-500.0,0.0003598,2]
[314556180,1708420258148,-500.0,0.0003598,2]
[314556181,1708420258157,-500.0,0.0003598,2]
[314556182,1708420258168,-500.0,0.0003598,2]
[314556183,1708420258178,-500.0,0.0003598,2]
[314556184,1708420258188,-500.0,0.0003598,2]
[314556185,1708420258197,-500.0,0.0003598,2]
[314556186,1708420258208,-500.0,0.0003598,2]
[314556187,1708420258220,-500.0,0.0003598,2]
[314556188,1708420258230,-500.0,0.0003598,2]
[314556189,1708420258239,-500.0,0.0003598,2]
[314556190,1708420258249,-500.0,0.0003598,2]
[314556191,1708420258259,-500.0,0.0003598,2]
[314556192,1708420258269,-500.0,0.0003598,2]
[314556193,1708420258279,-430.26,0.0003598,2]
[314556194,1708420258290,-500.0,0.0003598,2]
[314556195,1708420258299,-85.29506924,0.0003598,2]
[314556196,1708420258312,-414.70493076,0.0003598,2]
[314556197,1708420258321,-500.0,0.0003598,2]
[314556198,1708420258330,-500.0,0.0003598,2]
[314556199,1708420258340,-500.0,0.0003598,2]
[314556200,1708420258350,-500.0,0.0003598,2]
[314556201,1708420258359,-500.0,0.0003598,2]
[314556202,1708420258369,-500.0,0.0003598,2]
[314556203,1708420258379,-500.0,0.0003598,2]
[314556204,1708420258388,-515.22,0.0003598,2]
[314556205,1708420258398,-500.0,0.0003598,2]
[314556206,1708420258407,-500.0,0.0003598,2]
[314556207,1708420258416,-500.0,0.0003598,2]
[314556208,1708420258427,-500.0,0.0003598,2]
[314556209,1708420258436,-500.0,0.0003598,2]
[314556210,1708420258446,-500.0,0.0003598,2]
[314556211,1708420258455,-500.0,0.0003598,2]
[314556212,1708420258464,-500.0,0.0003598,2]
[314556213,1708420258474,-500.0,0.0003598,2]
[314556214,1708420258483,-500.0,0.0003598,2]
[314556215,1708420258493,-500.0,0.0003598,2]
[314556216,1708420258502,-500.0,0.0003598,2]
[314556217,1708420258511,-500.0,0.0003598,2]
[314556218,1708420258521,-500.0,0.0003598,2]
[314556219,1708420258530,-500.0,0.0003598,2]
[314556220,1708420258540,-500.0,0.0003598,2]
[314556221,1708420258549,-500.0,0.0003598,2]
[314556222,1708420258558,-500.0,0.0003598,2]
[314556223,1708420258568,-500.0,0.0003598,2]
[314556224,1708420258577,-500.0,0.0003598,2]
[314556225,1708420258586,-514.64,0.0003598,2]
[314556226,1708420258596,-150.0,0.00035999,30]
[314556227,1708420258605,-25566.52432946,0.00036,6]
[314556228,1708420259288,-266.26135688,0.00035415,4]
[314556229,1708420259298,-168.41569811,0.00035516,2]
[314556230,1708420259307,-172.73975058,0.00035609,2]
[314556231,1708420259317,-1362.78110407,0.00035615,2]
[314556232,1708420259327,-500.0,0.00035616,2]
[314556233,1708420259337,-500.0,0.00035616,2]
[314556234,1708420259346,-500.0,0.00035616,2]
[314556235,1708420259355,-500.0,0.00035616,2]
[314556236,1708420259364,-1127.77671532,0.0003578,2]
[314556240,1708421229119,-221.92429326,0.00026893,2]
[314556241,1708421250089,-166.5241201,0.00026893,2]
[314556242,1708421250110,-416.63921772,0.00026893,2]
[314556243,1708421250131,-166.33202118,0.00026894,2]
[314556244,1708421250150,-1000.0,0.000269,2]
[314556245,1708421250169,-198.17452419,0.00026994,2]
[314556246,1708421250190,-186.76779371,0.00027934,2]
[314556247,1708421250608,-3353.5496,0.00027934,2]
[314556248,1708421250658,-1426.76,0.00028034,2]
[314556249,1708421250679,-1441.07,0.00028034,2]
[314556250,1708421250699,-554.4574523,0.00028034,2]
[314556252,1708421345131,-155.0,0.00024999,2]
[314556253,1708421345155,-750.0,0.00025,3]
[314556257,1708421360134,-800.0,0.00027,3]
[314556258,1708421360155,-865.9225477,0.00028034,2]
[314556259,1708421360175,-1453.44,0.00028034,2]
[314556260,1708421360195,-850.0,0.00029,3]
[314556261,1708421360215,-3676.84,0.00030275,2]
[314556262,1708421360326,-553.82,0.00030972,2]
[314556263,1708421360347,-151.27923715,0.00031763,2]
[314556272,1708421431589,-559.78397774,0.00031814,4]
[314556273,1708421431599,-271.91388935,0.00031815,4]
[314556274,1708421431608,-223.47872327,0.00031816,4]
[314556275,1708421431618,-186.7677937,0.00031817,2]
[314556276,1708421431627,-250.0,0.00032529,2]
[314556277,1708421431637,-235.89,0.00032626,2]
[314556278,1708421431649,-155.0,0.00032759,4]
[314556279,1708421431659,-184.0,0.00032762,3]
[314556280,1708421431668,-400.0,0.00032762,3]
[314556281,1708421431677,-212.59,0.00032763,2]
[314556282,1708421431687,-2495.22561594,0.00032763,2]
[314556283,1708421431754,-40515.6079476,0.00032763,2]
[314556284,1708421431767,-616.50619749,0.00032763,2]
[314556285,1708421431781,-835.08299887,0.00032763,2]
[314556286,1708421431794,-417.91361583,0.00032763,2]
[314556287,1708421431893,-2755.55769038,0.00032763,2]
[314556288,1708421431907,-6597.98593389,0.00032763,2]
[314556289,1708421431918,-390.77,0.00032825,2]
[314556290,1708421431928,-390.9,0.0003292,2]
[314556291,1708421431939,-2942.00798611,0.0003292,2]
[314556292,1708421431956,-5270.94201389,0.0003292,2]
[314556295,1708421431966,-499.99,0.0003292,2]
[314556298,1708421431975,-208.0,0.00032953,2]
[314556300,1708421431985,-23900.0,0.00032979,2]
[314556302,1708421431994,-1000.0,0.00033027,2]
[314556304,1708421432003,-250.0,0.00033143,2]
[314556306,1708421432013,-553.82,0.00033236,2]
[314556307,1708421432022,-500.0,0.00033324,2]
[314556309,1708421432031,-2000.0,0.0003333,2]
[314556312,1708421432041,-750.0,0.0003333,2]
[314556313,1708421432050,-1430.32,0.0003339,2]
[314556315,1708421432060,-548.36818583,0.00033863,2]
[314556317,1708421432069,-182.06,0.00034243,2]
[314556319,1708421432079,-235.89,0.0003427,2]
[314556321,1708421432088,-166.01,0.00034311,2]
[314556323,1708421432098,-182.06,0.00034423,2]
[314556325,1708421432107,-820.09,0.00034453,10]
[314556327,1708421432117,-2948.6747,0.00034463,2]
[314556328,1708421432126,-153.61,0.00034521,2]
[314556329,1708421432135,-182.06,0.00034603,2]
[314556330,1708421432144,-208.0,0.00034643,5]
[314556331,1708421432154,-182.06,0.00034783,2]
[314556332,1708421432164,-500.0,0.000348,2]
[314556333,1708421432178,-13722.1779,0.000348,2]
[314556334,1708421432187,-29493.2706,0.000348,2]
[314556335,1708421432197,-811.108,0.000348,2]
[314556336,1708421432207,-716.8915,0.000348,2]
[314556337,1708421432217,-333.2857,0.000348,2]
[314556338,1708421432227,-161.6105,0.000348,2]
[314556339,1708421432237,-2372.5542,0.000348,2]
[314556340,1708421432247,-198.83181964,0.000348,7]
[314556341,1708421432257,-699.0,0.0003489,7]
[314556342,1708421432267,-11249.6118171,0.0003489,6]
[314556343,1708421432278,-808.75984195,0.00034898,4]
[314556344,1708421432287,-2230.73931955,0.00034898,2]
[314556345,1708421432297,-155.62640414,0.00034898,4]
[314556346,1708421432307,-468040.6414,0.000349,2]
[314556347,1708421432317,-1222.73518832,0.000349,2]
[314556348,1708421432327,-182.06,0.00034964,2]
[314556349,1708421432336,-400.02808547,0.00034999,15]
[314556350,1708421432345,-100000.0,0.00035,5]
[314556351,1708421432355,-3200.0,0.00035,2]
[314556352,1708421432366,-12542.0,0.00035,2]
[314556353,1708421432375,-2957.25,0.00035,2]
[314556354,1708421432385,-1500.0,0.00035,2]
[314556355,1708421432396,-1908.0,0.00035,2]
[314556356,1708421432406,-182.06,0.00035144,2]
[314556357,1708421432416,-37678.74131275,0.000352,2]
[314556358,1708421432425,-560.0,0.0003521,3]
[314556359,1708421432435,-182.06,0.00035324,2]
[314556360,1708421432445,-543.80334242,0.00035416,2]
[314556361,1708421432455,-1183.8480847,0.00035446,2]
[314556362,1708421432465,-1484.09517084,0.00035468,2]
[314556363,1708421432475,-553.82,0.000355,2]
[314556364,1708421432485,-182.06,0.00035504,2]
[314556365,1708421432494,-5929.9481023,0.00035516,2]
[314556366,1708421432505,-1000.0,0.00035516,2]
[314556367,1708421432516,-5000.0,0.00035516,3]
[314556368,1708421432526,-188.19652487,0.00035516,8]
[314556369,1708421432537,-175.24295463,0.00035516,2]
[314556370,1708421432547,-168.69666622,0.00035516,2]
[314556371,1708421432560,-3145.32012296,0.00035516,8]
[314556372,1708421432571,-154.23974413,0.00035516,2]
[314556373,1708421432579,-155.31,0.00035522,2]
[314556374,1708421432590,-3145.32012295,0.00035591,8]
[314556375,1708421432601,-517.35,0.000356,7]
[314556376,1708421432614,-157.55965458,0.00035616,2]
[314556377,1708421432625,-276.67052694,0.00035616,2]
[314556378,1708421432634,-500.0,0.00035616,2]
[314556379,1708421432647,-500.0,0.00035616,2]
[314556380,1708421432656,-577.87588356,0.00035616,2]
[314556381,1708421432666,-614.41384191,0.00035616,2]
[314556382,1708421432675,-500.0,0.00035616,2]
[314556383,1708421432685,-500.0,0.00035616,2]
[314556384,1708421432694,-500.0,0.00035616,2]
[314556385,1708421432703,-500.0,0.00035616,2]
[314556386,1708421432713,-500.0,0.00035616,2]
[314556387,1708421432723,-500.0,0.00035616,2]
[314556388,1708421432735,-500.0,0.00035616,2]
[314556389,1708421432746,-500.0,0.00035616,2]
[314556390,1708421432756,-500.0,0.00035616,2]
[314556391,1708421432767,-500.0,0.00035616,2]
[314556392,1708421432776,-500.0,0.00035616,2]
[314556393,1708421432786,-500.0,0.00035616,2]
[314556394,1708421432796,-500.0,0.00035616,2]
[314556395,1708421432807,-500.0,0.00035616,2]
[314556396,1708421432817,-514.05413777,0.00035616,2]
[314556397,1708421432827,-500.0,0.00035616,2]
[314556398,1708421432837,-500.0,0.00035616,2]
[314556399,1708421432846,-500.0,0.00035616,2]
[314556400,1708421432855,-341.59089355,0.00035616,2]
[314556401,1708421432866,-500.0,0.00035616,2]
[314556402,1708421432875,-500.0,0.00035616,2]
[314556403,1708421432885,-504.56477029,0.00035616,2]
[314556404,1708421432895,-500.0,0.00035616,2]
[314556405,1708421432905,-500.0,0.00035616,2]
[314556406,1708421432916,-500.0,0.00035616,2]
[314556407,1708421432925,-501.57360368,0.00035616,2]
[314556408,1708421432934,-500.0,0.00035616,2]
[314556409,1708421432944,-500.0,0.00035616,2]
[314556410,1708421432954,-444.14067722,0.00035616,2]
[314556411,1708421432963,-500.0,0.00035616,2]
[314556412,1708421432973,-500.0,0.00035616,2]
[314556413,1708421432983,-500.0,0.00035616,2]
[314556414,1708421432993,-500.0,0.00035616,2]
[314556415,1708421433003,-528.39621914,0.00035616,2]
[314556416,1708421433013,-500.0,0.00035616,2]
[314556417,1708421433023,-500.0,0.00035616,2]
[314556418,1708421433033,-500.0,0.00035616,2]
[314556419,1708421433043,-500.0,0.00035616,2]
[314556420,1708421433053,-500.84937232,0.00035616,2]
[314556421,1708421433063,-500.0,0.00035616,2]
[314556422,1708421433073,-500.0,0.00035616,2]
[314556423,1708421433085,-453.59819877,0.00035616,2]
[314556424,1708421433095,-500.0,0.00035616,2]
[314556425,1708421433105,-500.0,0.00035616,2]
[314556426,1708421433114,-500.0,0.00035616,2]
[314556427,1708421433124,-500.0,0.00035616,2]
[314556428,1708421433133,-500.0,0.00035616,2]
[314556429,1708421433143,-500.0,0.00035616,2]
[314556430,1708421433154,-500.0,0.00035616,2]
[314556431,1708421433163,-500.0,0.00035616,2]
[314556432,1708421433173,-500.0,0.00035616,2]
[314556433,1708421433183,-500.0,0.00035616,2]
[314556434,1708421433192,-500.0,0.00035616,2]
[314556435,1708421433202,-500.0,0.00035616,2]
[314556436,1708421433211,-500.0,0.00035616,2]
[314556437,1708421433222,-500.0,0.00035616,2]
[314556438,1708421433232,-500.0,0.00035616,2]
[314556439,1708421433242,-500.0,0.00035616,2]
[314556440,1708421433251,-500.0,0.00035616,2]
[314556441,1708421433261,-500.0,0.00035616,2]
[314556442,1708421433270,-500.0,0.00035616,2]
[314556443,1708421433280,-500.0,0.00035616,2]
[314556444,1708421433290,-500.0,0.00035616,2]
[314556445,1708421433299,-500.0,0.00035616,2]
[314556446,1708421433309,-500.0,0.00035616,2]
[314556447,1708421433319,-500.0,0.00035616,2]
[314556448,1708421433329,-571.44821232,0.00035616,2]
[314556449,1708421433339,-500.0,0.00035616,2]
[314556450,1708421433348,-500.0,0.00035616,2]
[314556451,1708421433358,-500.0,0.00035616,2]
[314556452,1708421433367,-500.0,0.00035616,2]
[314556453,1708421433377,-500.0,0.00035616,2]
[314556454,1708421433386,-500.0,0.00035616,2]
[314556455,1708421433395,-500.0,0.00035616,2]
[314556456,1708421433405,-500.0,0.00035616,2]
[314556457,1708421433415,-500.0,0.00035616,2]
[314556458,1708421433435,-500.0,0.00035616,2]
[314556459,1708421433446,-500.0,0.00035616,2]
[314556460,1708421433456,-500.0,0.00035616,2]
[314556461,1708421433465,-357.36174242,0.00035616,2]
[314556462,1708421433475,-500.0,0.00035616,2]
[314556463,1708421433486,-500.0,0.00035616,2]
[314556464,1708421433495,-500.0,0.00035616,2]
[314556465,1708421433505,-500.0,0.00035616,2]
[314556466,1708421433515,-500.0,0.00035616,2]
[314556467,1708421433525,-500.0,0.00035616,2]
[314556468,1708421433535,-500.0,0.00035616,2]
[314556469,1708421433545,-500.0,0.00035616,2]
[314556470,1708421433556,-500.0,0.00035616,2]
[314556471,1708421433566,-500.0,0.00035616,2]
[314556472,1708421433576,-500.0,0.00035616,2]